[Event "Plancoet 2012"]
[Site "?"]
[Date "2012.08.02"]
[Round "7.4"]
[White "Serafimov, Tervel"]
[Black "Guliyev, Namig"]
[Result "0-1"]
[ECO "A29"]
[WhiteElo "2425"]
[BlackElo "2539"]
[Annotator ",Seb"]
[PlyCount "88"]
[TimeControl "240+2"]

{512MB, Opening Tree.ctg} 1. g3 e5 2. Bg2 Nf6 3. c4 Nc6 4. Nf3 Bc5 5. Nc3 O-O
6. O-O Re8 7. d3 a6 8. a3 d6 9. Bg5 h6 10. Bh4 Nd4 11. Bxf6 Qxf6 12. Ne4 Qe7
13. Nxc5 dxc5 14. e3 Nf5 15. Re1 c6 16. d4 Rd8 17. Nxe5 cxd4 18. exd4 Nxd4 19.
Nf3 Nxf3+ 20. Qxf3 Qc5 21. Qc3 Be6 22. Bf1 Rd4 23. Rad1 Rad8 24. b4 Qa7 25.
Rxd4 Qxd4 26. Qxd4 Rxd4 27. c5 g5 28. f3 Kg7 29. Re3 Rd2 30. Be2 Kf6 31. Kf1 h5
32. Ke1 Ra2 33. Kf1 h4 34. Ke1 h3 35. g4 Rc2 36. Kd1 Rb2 37. Kc1 Ra2 38. Kb1
Bd5 39. Kc1 Ra1+ 40. Kd2 Rh1 41. f4 Rxh2 42. fxg5+ Kxg5 43. Ke1 Kf4 44. Rc3
Rxe2+ 0-1

[Event "Plancoet 2012"]
[Site "?"]
[Date "2012.08.02"]
[Round "7.5"]
[White "Marie, Maxime"]
[Black "Istratescu, Andrei"]
[Result "1/2-1/2"]
[ECO "A29"]
[WhiteElo "2192"]
[BlackElo "2641"]
[Annotator ",Seb"]
[PlyCount "69"]
[TimeControl "240+2"]

{512MB, Opening Tree.ctg} 1. c4 e5 2. g3 Nf6 3. Bg2 d5 4. cxd5 Nxd5 5. Nc3 Ne7
6. Nf3 Nbc6 7. O-O Nf5 8. a3 h5 9. b4 a6 10. Bb2 h4 11. Rc1 hxg3 12. fxg3 Qd6
13. Nd5 e4 14. Ng5 Qxd5 15. Bxe4 Qb5 16. Qb3 Nd8 17. Bd5 Qb6+ 18. e3 Qg6 19.
Rxc7 Be7 20. Qa4+ Kf8 21. Rxc8 Rxc8 22. Qd7 Qxg5 23. Rxf5 Rc7 24. Bxg7+ Qxg7
25. Qxc7 Qa1+ 26. Rf1 Qxa3 27. Bxf7 Nxf7 28. Qc8+ Kg7 29. Qe6 Rf8 30. Qxe7 Qb2
31. d4 Qe2 32. Qf6+ Kh7 33. Qf5+ Kg7 34. Qf6+ Kh7 35. Qf5+ 1/2-1/2

[Event "Plancoet 2012"]
[Site "?"]
[Date "2012.08.02"]
[Round "7.6"]
[White "Mevel, Alberic"]
[Black "Kukov, Velislav"]
[Result "0-1"]
[ECO "B12"]
[WhiteElo "2188"]
[BlackElo "2404"]
[Annotator ",Seb"]
[PlyCount "84"]
[TimeControl "240+2"]

{512MB, Opening Tree.ctg} 1. e4 c6 2. d4 d5 3. e5 Na6 4. Be3 g6 5. Nd2 Nc7 6.
Bd3 Nh6 7. h4 Nf5 8. h5 Bg7 9. Ne2 Nxe3 10. fxe3 Bg4 11. hxg6 hxg6 12. Rxh8+
Bxh8 13. Nf3 Ne6 14. c3 Bg7 15. Qc2 Qd7 16. O-O-O O-O-O 17. Kb1 Rh8 18. c4 Nc7
19. Nc3 e6 20. Rf1 Bh6 21. Qf2 dxc4 22. Bxc4 Nd5 23. Re1 Qe7 24. e4 Nb6 25. Bb3
Bxf3 26. Qxf3 Bd2 27. Rf1 Rh7 28. Nd1 a5 29. a3 Qg5 30. Nf2 Qe3 31. Rd1 a4 32.
Bc2 Qf4 33. Bd3 Qe3 34. Qf6 Nd7 35. Qf3 Qxf3 36. gxf3 Bf4 37. Ng4 Rh3 38. Bc2
Rxf3 39. Bxa4 Rg3 40. Nf2 Be3 41. Nd3 Bxd4 42. Bc2 Rg1 0-1

[Event "Plancoet 2012"]
[Site "?"]
[Date "2012.08.02"]
[Round "7.8"]
[White "Pucher, Olivier"]
[Black "Kaulfuss, Helmut"]
[Result "1-0"]
[ECO "B00"]
[WhiteElo "2352"]
[BlackElo "2181"]
[Annotator ",Seb"]
[PlyCount "43"]
[TimeControl "240+2"]

{512MB, Opening Tree.ctg} 1. d4 Nc6 2. Nf3 d6 3. e4 Nf6 4. Nc3 a6 5. a3 Bg4 6.
Be3 e5 7. d5 Ne7 8. h3 Bd7 9. Nd2 Ng6 10. g3 Be7 11. Qe2 h5 12. f4 exf4 13.
gxf4 h4 14. O-O-O Nh5 15. Qf2 Bf6 16. Ne2 Qe7 17. Bg2 Rc8 18. Bf3 c5 19. dxc6
Bxc6 20. Nc4 Bxe4 21. Nxd6+ Qxd6 22. Rxd6 1-0

[Event "Plancoet 2012"]
[Site "?"]
[Date "2012.08.02"]
[Round "7.12"]
[White "Polard, Gaetan"]
[Black "Binard, Vianney"]
[Result "1-0"]
[ECO "B90"]
[WhiteElo "2246"]
[BlackElo "1858"]
[Annotator ",Seb"]
[PlyCount "61"]
[TimeControl "240+2"]

{512MB, Opening Tree.ctg} 1. e4 c5 2. Nf3 d6 3. d4 cxd4 4. Nxd4 Nf6 5. Nc3 a6
6. Be3 e5 7. Nf3 Nbd7 8. Bc4 Be7 9. Bg5 Qc7 10. Bb3 Rb8 11. Nd2 b5 12. Bxf6
Nxf6 13. Nf1 Qc5 14. Ne3 O-O 15. O-O Rd8 16. Qd3 Bb7 17. a4 b4 18. Ncd5 Bxd5
19. Bxd5 a5 20. Qb3 Rf8 21. Rad1 Nd7 22. Nf5 Rbe8 23. Bc4 Nb6 24. Bb5 Qc7 25.
Bxe8 Rxe8 26. Nxe7+ Rxe7 27. c3 bxc3 28. Rc1 Qd8 29. Rxc3 Rb7 30. Rfc1 h6 31.
Rc8 1-0